Cogmind - Beta 11 X10 @@@ ROGUE MODE // 2022.02.25 @ 06:31:35 Player: maxwell Result: Destroyed by as-71562 with Assembled Shotgun Performance ------------- Evolutions (3) 1500 Regions Visited (10) 2000 Robots Destroyed (84) 420 Value Destroyed (2722) 2722 Prototype IDs (24) 480 Alien Tech Used (1) 200 Bonus (1767) 1767 TOTAL SCORE: 9089 Bonus ------- High Alert Combat Kills 11 Destroyed Z-Imprinter 1000 Triggered Deep Caves Wall 500 Exposed GOLEM Chamber 500 Friendly Fire -244 Cogmind --------- Core Integrity 0/700 Matter 64/300 Energy 100/100 System Corruption 7% Temperature Cool (0) Movement Rolling (165) Ox5 Location -7/Deep Caves Parts ------- > --- POWER (1) -------- Zionite Light DM Reactor > --- PROPULSION (2) --- Armored Wheel Armored Wheel > --- UTILITY (8) ------ High-capacity Storage Unit Improved Signal Interpreter > --- WEAPON (3) ------- Improved EM Pulse Cannon Heavy Rocket Launcher Heavy Flail > --- INVENTORY (20) --- Armored Wheel Structural Scanner Experimental Sensor Array Layered Light Armor Plating Layered Light Armor Plating Layered Light Armor Plating Dynamic Insulation System Long-range Tractor Beam Hacking Drone Bay (1/1) Improved EM Pulse Cannon Improved Grenade Launcher Heavy Missile Launcher Molecular Deconstructor Peak State ------------ > --- POWER ------------ Cooled Deuterium Engine > --- PROPULSION ------- Armored Wheel Armored Wheel > --- UTILITY ---------- Humpback Experimental Sensor Array Improved Signal Interpreter Advanced Targeting Computer Improved Propulsion Shielding Makeshift Armor Plating Makeshift Thermal Plating > --- WEAPON ----------- Advanced Beam Rifle Heavy Ion Cannon Enhanced Autogun > --- INVENTORY -------- Cooled Ion Engine Wheel Armored Wheel Armored Wheel Disposable Heat Sink High-capacity Storage Unit Structural Scanner Improved Sensor Array Improved Sensor Array Advanced Targeting Computer Heavy Armor Plating Layered Light Armor Plating Layered Light Armor Plating Layered Light Armor Plating Layered Light Armor Plating Dynamic Insulation System System Restoration Module Long-range Tractor Beam Hacking Drone Bay Shock Rifle Shock Rifle EM Pulse Cannon EM Pulse Cannon Improved EM Pulse Cannon Improved EM Pulse Cannon Flak Cannon Flak Cannon Shock Bomb Launcher Improved Grenade Launcher Heavy Rocket Launcher Heavy Missile Launcher Molecular Deconstructor Heavy Flail [Rating: 61] Favorites ----------- Power Cooled Deuterium Engine Engine Cooled Deuterium Engine Reactor Zionite Light DM Reactor Propulsion Armored Wheel Treads Light Treads Wheel Armored Wheel Utility Humpback Device Experimental Sensor Array Storage Humpback Processor Advanced Targeting Computer Hackware System Shield Protection Improved Propulsion Shielding Weapon Assault Rifle Energy Gun Field Laser Energy Cannon EM Pulse Cannon Ballistic Gun Assault Rifle Ballistic Cannon Flak Cannon Launcher Grenade Launcher Impact Weapon Heavy Flail Slashing Weapon Axe Special Melee Weapon Datajack Build | -11 -10 -10 -10 -9 -8 -7 -7 -7 -7 -7 ------- Run | Scr Mat Min Exi Min Mat Fac Low Low Zio Dee Slots Evolved 6 | . . . . . 4 2 . . . . Power . | . . . . . . . . . . . Propulsion . | . . . . . . . . . . . Utility 5 | . . . . . 3 2 . . . . Weapon 1 | . . . . . 1 . . . . . Parts Attached 127 | 5 2 . 2 1 38 22 11 7 9 30 Power 5 | 1 . . . . 1 1 . . . 2 Engine 4 | 1 . . . . 1 1 . . . 1 Core . | . . . . . . . . . . . Reactor 1 | . . . . . . . . . . 1 Propulsion 7 | 2 . . . . 2 1 . . . 2 Treads 2 | 2 . . . . . . . . . . Leg . | . . . . . . . . . . . Wheel 5 | . . . . . 2 1 . . . 2 Hover . | . . . . . . . . . . . Flight . | . . . . . . . . . . . Utility 58 | 1 1 . 1 . 16 15 7 . 5 12 Device 25 | . . . . . 7 10 3 . 2 3 Storage 7 | 1 . . 1 . 1 1 1 . 1 1 Processor 4 | . . . . . 2 1 . . . 1 Hackware 1 | . . . . . 1 . . . . . Protection 21 | . 1 . . . 5 3 3 . 2 7 Artifact . | . . . . . . . . . . . Weapon 57 | 1 1 . 1 1 19 5 4 7 4 14 Energy Gun 8 | . . . . . 3 2 1 1 1 . Energy Cannon 9 | . . . . . . 1 . 2 1 5 Ballistic Gun 13 | 1 . . . . 8 1 1 1 1 . Ballistic Cannon 4 | . . . . . 1 . . . . 3 Launcher 16 | . 1 . . 1 6 1 1 2 . 4 Special Weapon . | . . . . . . . . . . . Impact Weapon 5 | . . . . . . . 1 1 1 2 Slashing Weapon 1 | . . . . . 1 . . . . . Piercing Weapon . | . . . . . . . . . . . Special Melee Weapon 1 | . . . 1 . . . . . . . Unidentified Prototypes 9 | . . . . . 4 1 1 . 1 2 Corrupted Parts 1 | . . . . . . 1 . . . . System Corruption 2 | . . . . . . 2 . . . . Parts Lost 14 | . . . . . . 2 . . . 12 Power 2 | . . . . . . . . . . 2 Propulsion 2 | . . . . . . . . . . 2 Utility 6 | . . . . . . 1 . . . 5 Weapon 4 | . . . . . . 1 . . . 3 Highest Loss Streak 7 | . . . . . . 1 . . . 7 To Critical Strikes . | . . . . . . . . . . . Average Slot Usage (%) 90 | . 83 100 100 100 89 90 84 85 89 88 Engine 7 | . 14 14 14 14 9 7 7 7 7 1 Treads 5 | . 28 28 28 28 . . . . . . Wheel 12 | . . . . . 17 14 14 14 14 13 Device 7 | . . . . . 8 18 7 7 7 5 Storage 8 | . 14 14 14 14 9 7 7 7 7 7 Processor 8 | . . . . . 4 10 14 14 14 14 Protection 13 | . 2 14 14 14 11 7 8 14 18 19 Energy Gun 5 | . . . . . 2 9 15 12 11 1 Energy Cannon 2 | . . . . . . 2 . 1 4 10 Ballistic Gun 7 | . 14 14 . . 20 5 2 . 2 . Launcher 5 | . 10 14 14 27 2 3 3 6 . 5 Special Melee Weapon 1 | . . . 13 . . . . . . . Naked Turns . | . . . . . . . . . . . Heaviest Build 280 | 11 15 15 50 52 238 238 239 245 240 280 Greatest Support 40 | 40 40 40 40 40 40 24 24 24 24 24 Greatest Overweight (x) 18 | . . . 1 1 17 18 9 10 9 12 Average Overweight (x) 6 | . . . . 1 8 9 9 9 9 4 Largest Inventory Capacity 35 | 8 8 8 20 20 35 35 35 35 35 35 Average Capacity 29 | 7 8 8 11 20 34 35 35 35 35 23 Most Carried 35 | 3 8 8 12 18 35 35 35 35 35 35 Average Carried 27 | 1 4 8 9 16 32 34 34 34 33 21 Final Capacity 35 | 8 8 8 20 20 35 35 35 35 35 20 Final Carried 35 | 3 8 8 12 18 35 35 34 35 35 14 Class Distribution -------------------- 35% | Hauler-Mutant 25% | Mutant 11% | Hauler-Skirmisher 8% | Hauler-Gunner 7% | Hauler-Bomber 6% | Hauler-Tank 4% | Scavenger-Mutant Dominant Class ---------------- Mutant | -10/Materials Mutant | -10/Mines Mutant | -10/Exiles Mutant | -9/Mines Hauler-Mutant | -8/Materials Hauler-Mutant | -7/Factory Hauler-Mutant | -7/Lower Caves Hauler-Mutant | -7/Lower Caves Hauler-Mutant | -7/Zion Mutant | -7/Deep Caves Resources | -11 -10 -10 -10 -9 -8 -7 -7 -7 -7 -7 ----------- Run | Scr Mat Min Exi Min Mat Fac Low Low Zio Dee Matter Collected 2790 | 152 128 136 . 54 929 520 151 100 36 584 Remotely 891 | . . . . . 99 378 . . . 414 Salvage Created 3403 | . 6 156 . . 1000 643 177 75 . 1346 Parts 164 | . 4 14 . . 88 21 6 2 . 29 Haulers Intercepted 4 | . . . . . 4 . . . . . Recyclers Shooed 1 | . 1 . . . . . . . . . Parts Field Recycled . | . . . . . . . . . . . Retrieved Matter . | . . . . . . . . . . . Parts Self-Destructed 8 | . . . . . . . 6 2 . . Prevented 2 | . . . . . . . . 2 . . Kills | -11 -10 -10 -10 -9 -8 -7 -7 -7 -7 -7 ------- Run | Scr Mat Min Exi Min Mat Fac Low Low Zio Dee Combat Hostiles Destroyed 119 | . 3 10 . . 26 11 5 1 . 63 Melee 3 | . . . . . . . . . . 3 Guns 18 | . . . . . 12 5 1 . . . Cannons 7 | . . . . . 1 3 . 1 . 2 AOE 88 | . 3 10 . . 13 3 4 . . 55 Classes Destroyed 15 | . 2 2 . . 6 1 1 . . 3 Worker 2 | . . 1 . . 1 . . . . . Builder 2 | . . . . . 1 1 . . . . Hauler 4 | . . . . . 4 . . . . . Operator 1 | . 1 . . . . . . . . . Watcher 8 | . . . . . 4 4 . . . . Swarmer 26 | . 3 6 . . 13 . 4 . . . Grunt 13 | . . 4 . . 4 5 . . . . Duelist 1 | . . . . . 1 . . . . . Researcher 1 | . . . . . . . 1 . . . Sentry 12 | . . . . . 7 3 1 1 . . Hunter 2 | . . . . . 1 1 . . . . Programmer 2 | . . . . . . 2 . . . . Z-Technician 5 | . . . . . . . . . . 5 Z-Light 8 | . . . . . . . . . . 8 Assembled 45 | . . . . . . . . . . 45 Golem 9 | . . . . . . . . . . 9 Best Kill Streak 38 | . 3 4 . . 5 5 4 1 . 38 Combat Bots Only 38 | . 3 4 . . 4 3 4 1 . 38 Max Kills in Single Turn 11 | . 1 2 . . 3 2 4 1 . 11 Gunslinging . | . . . . . . . . . . . Exploded 11 | . 1 2 . . 3 1 4 . . 11 Melee 1 | . . . . . . . . . . 1 Uniques/NPCs Destroyed 1 | . . . . . . . . . . 1 Z-Imprinter (-7/Deep Caves) Combat | -11 -10 -10 -10 -9 -8 -7 -7 -7 -7 -7 -------- Run | Scr Mat Min Exi Min Mat Fac Low Low Zio Dee Damage Taken 5096 | . 62 138 . . 897 850 124 79 . 2946 Core 826 | . . 33 . . 81 132 31 6 . 543 Absorbed by Shields . | . . . . . . . . . . . Redirected to Shielding 163 | . . . . . 9 . . 6 . 148 Regen/Repaired (Parts) 23 | . . . . . 11 12 . . . . Core Remaining (%) 90 | 100 . . . 86 85 . . . . . Volleys Fired 230 | . 5 12 . . 80 39 2 8 3 81 Largest 3 | . 1 1 . . 3 3 3 3 1 3 Hottest 187 | . 30 30 . . 101 187 149 187 65 149 Shots Fired 448 | . 5 12 . . 218 85 4 16 3 105 Gun 284 | . . . . . 200 58 3 8 . 15 Cannon 98 | . . . . . 7 19 . 8 3 61 Launcher 66 | . 5 12 . . 11 8 1 . . 29 Special . | . . . . . . . . . . . Kinetic 241 | . . . . . 206 15 1 . . 19 Thermal 97 | . . . . . 1 43 2 12 2 37 Explosive 66 | . 5 12 . . 11 8 1 . . 29 Electromagnetic 44 | . . . . . . 19 . 4 1 20 Robot Hit Streak 25 | . 3 . . . 16 19 3 15 . 25 Robot Miss Streak 13 | . . . . . 6 3 1 . . 13 Penetration Max . | . . . . . . . . . . . Secondary Targets 1 | . . . . . 1 . . . . . Max Gunslinging Chain 1 | . . . . . 1 . . . . . Shots Hit Robots 346 | . 3 . 49 . 138 62 4 12 . 78 Core Hits 354 | . 7 18 . . 73 31 8 3 . 214 Critical Kills 1 | . . . . . . . . . . 1 Critical Parts Destroyed 2 | . . . . . . . 1 . . 1 Critical Strikes 7 | . . . . . . 2 1 1 . 3 Burn 2 | . . . . . . 1 . 1 . . Corrupt 2 | . . . . . . 1 . . . 1 Smash 3 | . . . . . . . 1 . . 2 Melee Attacks 89 | . . . 49 . 1 . 3 1 12 23 Impact 39 | . . . . . . . 3 1 12 23 Slashing 1 | . . . . . 1 . . . . . Piercing . | . . . . . . . . . . . Sneak Attacks 50 | . . . 49 . . . 1 . . . Combat Hostiles . | . . . . . . . . . . . Follow-up Attacks . | . . . . . . . . . . . Damage Inflicted 14301 | . 337 561 . . 2793 1854 487 237 . 8032 Guns 2754 | . . . . . 1709 723 55 147 . 120 Cannons 1608 | . . . . . 77 467 . 90 . 974 Explosions 8996 | . 337 561 . . 1007 664 249 . . 6178 Melee 943 | . . . . . . . 183 . . 760 Ramming . | . . . . . . . . . . . Kinetic 2104 | . . . . . 1786 162 17 . . 139 Thermal 1391 | . . . . . 73 561 38 147 . 572 Explosive 8848 | . 337 561 . . 934 664 249 . . 6103 Electromagnetic 1015 | . . . . . . 467 . 90 . 458 Impact 943 | . . . . . . . 183 . . 760 Slashing . | . . . . . . . . . . . Piercing . | . . . . . . . . . . . Highest Corruption 7 | . . . . . . 4 . . . 7 Average Corruption 2 | . . . . . . 1 . . . 4 Corruption Purged 9 | . . . . . . 9 . . . . Corruption Blocked 15 | . . . . . . . 15 . . . Effects 5 | . . . . . . 4 . . . 1 Message Errors 1 | . . . . . . 1 . . . . Matter Fused 3 | . . . . . . 2 . . . 1 Heat Flow Errors 1 | . . . . . . 1 . . . . Overload Shots . | . . . . . . . . . . . Overflow Damage 526 | . . 8 . . 47 26 183 . . 262 Projectiles 103 | . . . . . . 26 . . . 77 Explosions 192 | . . 8 . . 47 . . . . 137 Melee 231 | . . . . . . . 183 . . 48 Knockbacks 15 | . . . . . . . 1 . . 14 Impact 4 | . . . . . . . 1 . . 3 Kinetic 9 | . . . . . . . . . . 9 Secondary 2 | . . . . . . . . . . 2 Self-Inflicted Damage 441 | . . . . . 125 46 36 . . 234 Shots 17 | . . . . . 5 2 1 . . 9 Rammed . | . . . . . . . . . . . Targets Rammed . | . . . . . . . . . . . Kicked . | . . . . . . . . . . . Crushed . | . . . . . . . . . . . Highest Temperature 636 | . . 22 . . 91 331 98 326 16 636 Average Temperature 110 | . . 14 . . 22 86 58 115 11 130 Received Heat Transfer 1254 | . 12 36 . . 270 234 12 24 . 666 Effects 9 | . . . . . . . . . . 9 Shutdowns 1 | . . . . . . . . . . 1 Energy Bleed 1 | . . . . . . . . . . 1 Interference 3 | . . . . . . . . . . 3 Short Circuit 1 | . . . . . . . . . . 1 Damage (major) 3 | . . . . . . . . . . 3 Siege Activations . | . . . . . . . . . . . Robots Corrupted 2 | . . . . . . 1 . . . 1 Combat Hostiles 1 | . . . . . . . . . . 1 Parts Fried 5 | . . . . . . 3 1 1 . . Impact Corruptions 7 | . . . . . . . 5 . . 2 Robots Melted . | . . . . . . . . . . . Combat Hostiles . | . . . . . . . . . . . Parts Melted 2 | . . . . . . 2 . . . . Heat Transferred 2123 | . . . . . 50 1147 74 370 . 482 Parts Sabotaged . | . . . . . . . . . . . Parts Stolen . | . . . . . . . . . . . Parts Stripped . | . . . . . . . . . . . Power Chain Reactions 1 | . . . . . . . . . . 1 Missiles Intercepted . | . . . . . . . . . . . Alert | -11 -10 -10 -10 -9 -8 -7 -7 -7 -7 -7 ------- Run | Scr Mat Min Exi Min Mat Fac Low Low Zio Dee Peak Influence 432 | . 160 307 . 7 432 223 . . . . Initial 70 | . . 62 . . 2 70 . . . . Average 158 | . 36 219 . . 227 93 . . . . Maximum Alert Level 2 | . . 1 . . 2 1 . . . . Low Security (%) 66 | 100 100 33 . 100 48 92 . . . . Level 1 27 | . . 66 . . 41 7 . . . . Level 2 5 | . . . . . 10 . . . . . Level 3 . | . . . . . . . . . . . Level 4 . | . . . . . . . . . . . Level 5 . | . . . . . . . . . . . High Security . | . . . . . . . . . . . Max Security . | . . . . . . . . . . . Squads Dispatched 9 | . 2 . . . 1 6 . . . . Investigation 4 | . 1 . . . 1 2 . . . . Extermination 2 | . . . . . . 2 . . . . Reinforcement 3 | . 1 . . . . 2 . . . . Assault . | . . . . . . . . . . . Garrison . | . . . . . . . . . . . Intercept . | . . . . . . . . . . . Construction Impeded . | . . . . . . . . . . . Haulers Reinforced 1 | . . . . . . 1 . . . . Active Scanning Responses . | . . . . . . . . . . . Cargo Convoy Interrupts . | . . . . . . . . . . . Stealth | -11 -10 -10 -10 -9 -8 -7 -7 -7 -7 -7 --------- Run | Scr Mat Min Exi Min Mat Fac Low Low Zio Dee Distress Signals 5 | . . . . . 3 2 . . . . Communications Jammed . | . . . . . . . . . . . Distress Signals . | . . . . . . . . . . . Times Spotted 139 | . 8 10 . . 49 17 5 1 . 49 Peak Tracking Total 26 | . 3 4 . . 5 3 4 1 . 26 Tactical Retreats 11 | . . . . . 10 . . 1 . . Traps | -11 -10 -10 -10 -9 -8 -7 -7 -7 -7 -7 ------- Run | Scr Mat Min Exi Min Mat Fac Low Low Zio Dee Traps Triggered 6 | . . . . . 3 3 . . . . Indirectly . | . . . . . . . . . . . Trap Hack Attempts . | . . . . . . . . . . . Triggered . | . . . . . . . . . . . Disarmed . | . . . . . . . . . . . Reprogrammed . | . . . . . . . . . . . Reused 3 | . . . . . 2 1 . . . . Traps Extracted . | . . . . . . . . . . . Installed 4 | . . . . . 2 2 . . . . Triggered 3 | . . . . . 2 1 . . . . Most Traps Carried 4 | . . . . 4 4 2 . . . . Machines | -11 -10 -10 -10 -9 -8 -7 -7 -7 -7 -7 ---------- Run | Scr Mat Min Exi Min Mat Fac Low Low Zio Dee Machines Disabled 11 | . . . . . 4 2 . 1 1 3 Max in Single Turn 2 | . . . . . 2 1 . 1 1 1 Garrison Access 2 | . . . . . 1 1 . . . . Machines Sabotaged . | . . . . . . . . . . . Garrisons Compromised . | . . . . . . . . . . . Overloaded Fab Kills . | . . . . . . . . . . . Hacking | -11 -10 -10 -10 -9 -8 -7 -7 -7 -7 -7 --------- Run | Scr Mat Min Exi Min Mat Fac Low Low Zio Dee Machines Accessed 31 | . 4 . 1 1 16 8 1 . . . Terminals 18 | . 3 . . 1 10 4 . . . . Fabricators . | . . . . . . . . . . . Repair Stations 3 | . . . . . 2 1 . . . . Recycling Units 3 | . 1 . . . 1 1 . . . . Scanalyzers 3 | . . . . . 2 1 . . . . Garrison Access 2 | . . . . . 1 1 . . . . Total Hacks 88 | . 16 . 1 2 50 18 1 . . . Successful 47 | . 9 . 1 1 26 9 1 . . . Failed 40 | . 7 . . 1 23 9 . . . . Catastrophic 7 | . 1 . . . 4 2 . . . . Database Lockouts 1 | . . . . . 1 . . . . . Manual 50 | . 9 . . 2 28 10 . 1 . . Terminals 54 | . 11 . . 2 31 10 . . . . Fabricators . | . . . . . . . . . . . Repair Stations 6 | . . . . . 4 2 . . . . Recycling Units 10 | . 5 . . . 2 3 . . . . Scanalyzers 12 | . . . . . 10 2 . . . . Garrison Access 4 | . . . . . 3 1 . . . . Terminal Hacks 14 | . 4 . 1 1 7 . 1 . . . Record 1 | . . . 1 . . . . . . . Part Schematic 3 | . 1 . . 1 1 . . . . . Robot Analysis 2 | . . . . . 2 . . . . . Open Door 1 | . . . . . . . 1 . . . Terminal Index 2 | . 1 . . . 1 . . . . . Unreport Threat 2 | . . . . . 2 . . . . . Locate Traps 3 | . 2 . . . 1 . . . . . Fabricator Hacks . | . . . . . . . . . . . Repair Station Hacks 5 | . . . . . 3 2 . . . . Scan Component 3 | . . . . . 2 1 . . . . Repair 2 | . . . . . 1 1 . . . . Recycling Unit Hacks 3 | . 1 . . . . 2 . . . . Retrieve Components 3 | . 1 . . . . 2 . . . . Scanalyzer 10 | . . . . . 8 2 . . . . Insert Component 4 | . . . . . 3 1 . . . . Analyze 6 | . . . . . 5 1 . . . . Garrison Access Hacks 2 | . . . . . 1 1 . . . . Seal Access 2 | . . . . . 1 1 . . . . Unauthorized Hacks 13 | . 4 . . . 7 2 . . . . Terminals 11 | . 3 . . . 6 2 . . . . Assimilate 2 | . . . . . 2 . . . . . Botnet 5 | . 2 . . . 2 1 . . . . Operators 4 | . 1 . . . 2 1 . . . . Fabricators . | . . . . . . . . . . . Repair Stations . | . . . . . . . . . . . Recycling Units 2 | . 1 . . . 1 . . . . . Tunnel 2 | . 1 . . . 1 . . . . . Scanalyzers . | . . . . . . . . . . . Garrison Access . | . . . . . . . . . . . Data Cores Recovered 1 | . 1 . . . . . . . . . Used 1 | . 1 . . . . . . . . . Hacking Detections 23 | . 4 . . 1 11 7 . . . . Full Trace Events 2 | . . . . . . 2 . . . . Feedback Events . | . . . . . . . . . . . Feedback Blocked . | . . . . . . . . . . . Robot Schematics Acquired 3 | . . . . . . . . . 3 . Robots Built . | . . . . . . . . . . . Authchips . | . . . . . . . . . . . Time . | . . . . . . . . . . . Total Robot Build Rating . | . . . . . . . . . . . Part Schematics Acquired 20 | . 1 . . . 3 1 . . 15 . Parts Built . | . . . . . . . . . . . Authchips . | . . . . . . . . . . . Time . | . . . . . . . . . . . Total Part Build Rating . | . . . . . . . . . . . Parts Repaired 2 | . . . . . 1 1 . . . . Time 180 | . . . . . 136 44 . . . . Parts Recycled . | . . . . . . . . . . . Recycled Matter . | . . . . . . . . . . . Retrieved Matter . | . . . . . . . . . . . Retrieved Components 3 | . 3 . . . . . . . . . Parts Scanalyzed 4 | . . . . . 3 1 . . . . Part Schematics Acquired 4 | . . . . . 3 1 . . . . Parts Damaged . | . . . . . . . . . . . Bothacking | -11 -10 -10 -10 -9 -8 -7 -7 -7 -7 -7 ------------ Run | Scr Mat Min Exi Min Mat Fac Low Low Zio Dee Used RIF Installer . | . . . . . . . . . . . Robots Hacked 10 | . . . 10 . . . . . . . Non-combat 3 | . . . 3 . . . . . . . Combat 7 | . . . 7 . . . . . . . Robot Hacks Applied 46 | . . . 46 . . . . . . . parse_system 46 | . . . 46 . . . . . . . Relay Couplers Released . | . . . . . . . . . . . Fabnet Peak Effective % . | . . . . . . . . . . . Robots Rewired . | . . . . . . . . . . . Allies Hacked . | . . . . . . . . . . . Hacks Repelled . | . . . . . . . . . . . Allies | -11 -10 -10 -10 -9 -8 -7 -7 -7 -7 -7 -------- Run | Scr Mat Min Exi Min Mat Fac Low Low Zio Dee Total Allies 2 | . . . . . 2 . . . . . Largest Group 2 | . . . . . 2 2 . . . . Highest-Rated Group 20 | . . . . . 20 20 . . . . Highest-Rated Ally 10 | . . . . . 10 10 . . . . Total Orders 2 | . . . . . 2 . . . . . STAY 1 | . . . . . 1 . . . . . FOLLOW 1 | . . . . . 1 . . . . . Ally Attacks . | . . . . . . . . . . . Total Damage . | . . . . . . . . . . . Kills . | . . . . . . . . . . . Allies Corrupted . | . . . . . . . . . . . Allies Melted . | . . . . . . . . . . . Intel | -11 -10 -10 -10 -9 -8 -7 -7 -7 -7 -7 ------- Run | Scr Mat Min Exi Min Mat Fac Low Low Zio Dee Robot Analysis Total 2 | . . . . . 2 . . . . . Derelict Logs Recovered 6 | . . 1 . 2 . . 1 1 1 . Drone Launches . | . . . . . . . . . . . Drone Recoveries . | . . . . . . . . . . . Exploration | -11 -10 -10 -10 -9 -8 -7 -7 -7 -7 -7 ------------- Run | Scr Mat Min Exi Min Mat Fac Low Low Zio Dee Turns Passed 14223 | 82 208 451 1097 769 3492 1642 1322 930 2031 2199 Spaces Moved 6125 | 47 119 267 577 318 1282 616 570 374 829 1126 Core 2 | 2 . . . . . . . . . . Treads 1335 | 45 119 267 577 318 9 . . . . . Legs . | . . . . . . . . . . . Wheels 4788 | . . . . . 1273 616 570 374 829 1126 Hover . | . . . . . . . . . . . Flight . | . . . . . . . . . . . Fastest Speed 50 | 50 160 160 160 240 195 225 225 225 225 120 Average Speed 203 | 155 160 160 176 240 220 225 225 233 225 155 Slowest Speed 360 | 160 160 160 240 240 345 360 225 240 225 265 Overloaded Moves . | . . . . . . . . . . . Propulsion Burnouts . | . . . . . . . . . . . Robots Hopped . | . . . . . . . . . . . Cave-ins Triggered . | . . . . . . . . . . . Exploration Rate (%) 59 | 4 33 58 86 77 87 17 74 59 80 82 Regions Visited 10 Branch Regions 7 Pre-discovered Areas 4 | . 1 . 1 1 1 . . . . . Known Exits Taken 4 | . . . . . . 1 1 1 1 . Unknown Exits Taken 6 | 1 1 1 1 1 1 . . . . . Scrap Searched 8 | . . 1 . 2 . . 2 1 2 . Spaces Dug 40 | . 5 . . . 19 5 2 1 3 5 Terrain Destroyed 326 | . 36 85 . . 82 21 13 3 3 83 Melee 11 | . . . . . 1 . 2 . 3 5 Projectile 4 | . . . . . . . . 3 . 1 AOE 311 | . 36 85 . . 81 21 11 . . 77 Terrain Rammed . | . . . . . . . . . . . Walls Destroyed . | . . . . . . . . . . . Machines Disabled . | . . . . . . . . . . . Actions | -11 -10 -10 -10 -9 -8 -7 -7 -7 -7 -7 --------- Run | Scr Mat Min Exi Min Mat Fac Low Low Zio Dee Total 7432 | 54 131 279 630 324 1777 803 601 414 974 1445 Wait 665 | . . 1 . . 306 83 6 23 84 162 Move 6115 | 46 118 266 576 317 1281 615 569 373 828 1126 Hop . | . . . . . . . . . . . Pick Up 120 | 3 6 . 2 6 40 19 4 1 33 6 Fast Attach 29 | 5 1 . . . 7 7 2 . 3 4 Attach 37 | . 1 . . . 12 6 3 . 2 13 Detach 13 | . . . . . 5 3 1 . . 4 Swap 62 | . . . 2 1 19 9 7 7 4 13 Drop 68 | . . . 1 . 24 20 4 1 5 13 Fire 230 | . 5 12 . . 80 39 2 8 3 81 Melee 89 | . . . 49 . 1 . 3 1 12 23 Ram . | . . . . . . . . . . . Kick . | . . . . . . . . . . . Crush . | . . . . . . . . . . . Escape Stasis . | . . . . . . . . . . . Rewire . | . . . . . . . . . . . Trap 4 | . . . . . 2 2 . . . . Miscellaneous . | . . . . . . . . . . . Route ------- -11/Scrapyard -10/Materials -10/Mines (discovered 3 exits: *Mat x2 / *Exi) -10/Exiles -9/Mines -8/Materials (discovered 2 exits: *Fac x2) -7/Factory -7/Lower Caves -7/Lower Caves -7/Zion (discovered 2 exits: *Dee / [*Pro]) -7/Deep Caves (discovered 1 exit: [*Pro]) History --------- Turn | Location | Event 61 | -11/Scrapyard | Discovered new exit (range 12) 83 | -11/Scrapyard | Entered Materials 284 | -10/Materials | Discovered new exit (range 5) 291 | -10/Materials | Entered Mines 305 | -10/Mines | Build established: Mutant 553 | -10/Mines | Identified exit to Materials 586 | -10/Mines | Discovered exit to Materials (range 14) 617 | -10/Mines | Discovered new exit (range 6) 736 | -10/Mines | Deemed a non-threat by the Exiles lab entrance 742 | -10/Mines | Entered Exiles 782 | -10/Exiles | Met 8R-AWN 808 | -10/Exiles | Met EX-HEX 935 | -10/Exiles | Met EX-BIN 985 | -10/Exiles | Met EX-DEC 991 | -10/Exiles | Learned location of Zion (-7) 1301 | -10/Exiles | Visited The Gauntlet 1810 | -10/Exiles | Discovered new exit (range 14) 1839 | -10/Exiles | Entered Mines 1840 | -9/Mines | Assembled infested the area 1845 | -9/Mines | Assisted by a Guerilla fighting off Assembled 1884 | -9/Mines | Found a hidden stash of uninstalled traps 1929 | -9/Mines | Learned Materials garrison access intel 2114 | -9/Mines | Found a damaged Exp. Sensor Array with a note attached 2119 | -9/Mines | Found Prototype Device 2196 | -9/Mines | A weapon hastily lodged in a ceiling crevice suddenly fell to the ground 2569 | -9/Mines | Discovered new exit (range 6) 2608 | -9/Mines | Entered Materials 2608 | -8/Materials | Evolved 4 slots: Utility x3, Weapon x1 2609 | -8/Materials | Loaded intel: 1 garrison access location 2847 | -8/Materials | Identified Exp. Sensor Array 2943 | -8/Materials | Build established: Hauler-Bomber 3762 | -8/Materials | Discovered new exit (range 15) 4041 | -8/Materials | Build established: Hauler-Mutant 4221 | -8/Materials | Discovered new exit (range 15) 4384 | -8/Materials | Build established: Hauler-Tank 4427 | -8/Materials | Repaired Broken Exp. Sensor Array 4821 | -8/Materials | Build established: Hauler-Gunner 5535 | -8/Materials | Build established: Hauler-Mutant 5627 | -8/Materials | Central database locked down 6100 | -8/Materials | Entered Factory 6100 | -7/Factory | Accompanied by 2 allies 6100 | -7/Factory | Evolved 2 slots: Utility x2 7692 | -7/Factory | Repaired System Restoration Module 7708 | -7/Factory | Discovered new exit (range 15) 7740 | -7/Factory | Identified exit to Lower Caves 7742 | -7/Factory | Entered Lower Caves 8132 | -7/Lower Caves | Learned Factory stockpile data 8367 | -7/Lower Caves | Attracted the attention of an 0b10 checkpoint 8675 | -7/Lower Caves | Build established: Hauler-Skirmisher 8836 | -7/Lower Caves | Found Alien Artifact 8836 | -7/Lower Caves | Identified Core Expander 8836 | -7/Lower Caves | Installed Core Expander, added new Utility slot 8967 | -7/Lower Caves | Discovered new exit (range 6) 8998 | -7/Lower Caves | Encountered a Warlord checkpoint 9062 | -7/Lower Caves | Identified exit to Lower Caves 9064 | -7/Lower Caves | Entered another Lower Caves area 9351 | -7/Lower Caves | Learned Factory garrison access intel 9625 | -7/Lower Caves | Build established: Hauler-Mutant 9712 | -7/Lower Caves | Acquired the password to a Derelict Tinkerer's latest research 9734 | -7/Lower Caves | Found Prototype Special Weapon 9867 | -7/Lower Caves | Attracted the attention of an 0b10 checkpoint 9980 | -7/Lower Caves | Discovered new exit (range 7) 9992 | -7/Lower Caves | Identified exit to Zion 9994 | -7/Lower Caves | Entered Zion 10151 | -7/Zion | Build established: Hauler-Skirmisher 10210 | -7/Zion | Discovered new exit (range 11) 10718 | -7/Zion | Build established: Hauler-Tank 11009 | -7/Zion | Received a visual enhancement algorithm 11079 | -7/Zion | Build established: Hauler-Mutant 11186 | -7/Zion | Learned Factory garrison access intel 11279 | -7/Zion | Given the Hacking Drone Bay 11299 | -7/Zion | Found Prototype Device 11331 | -7/Zion | Identified Hacking Drone Bay 11757 | -7/Zion | Learned Factory emergency access door positions 11981 | -7/Zion | Discovered new exit (range 5) 11983 | -7/Zion | Saw the warning signs outside the Deep Caves entrance 12023 | -7/Zion | Identified exit to Deep Caves 12025 | -7/Zion | Entered Deep Caves 12377 | -7/Deep Caves | Attacked by Z-Imprinter 12402 | -7/Deep Caves | Core integrity fell below 50% 12448 | -7/Deep Caves | Destroyed Z-Imprinter 12471 | -7/Deep Caves | Lost 7 parts (2p1n2u2w) 12478 | -7/Deep Caves | Found Prototype Protection 12478 | -7/Deep Caves | Identified Zio. Weapon Casing 12567 | -7/Deep Caves | Z-Facility disabled 13218 | -7/Deep Caves | Discovered new exit (range 6) 13593 | -7/Deep Caves | Build established: Mutant 14018 | -7/Deep Caves | Spotted as-10483 14043 | -7/Deep Caves | Core integrity fell below 20% 14049 | -7/Deep Caves | Destroyed as-10483 14079 | -7/Deep Caves | Lost 3 parts (1n1u1w) 14115 | -7/Deep Caves | Triggered Deep Caves wall 14120 | -7/Deep Caves | Exposed GOLEM chamber 14165 | -7/Deep Caves | Destroyed 38 combat bots 14224 | -7/Deep Caves | Destroyed by as-71562 with Assembled Shotgun Last Messages --------------- 14185_ Adv. Targeting Computer destroyed. 14185_ System corrupted by crushing effect (+4). 14186_ System corrupted: Matter fused (-6). 14187_ Destroyed Asb. P-maul. 14187_ as-95879 system corrupted by crushing effect. 14187_ as-95879 knocked back. 14188_ as-95879 system terminally corrupted. 14195_ as-30545 destroyed. 14200_ as-93666 destroyed. 14205_ as-11623 destroyed. 14205_ as-41320 destroyed. 14205_ as-44367 destroyed. 14205_ as-10883 destroyed. 14209_ as-96928 suffers critical hit (Smash). 14209_ Destroyed GOLEM Unit. 14209_ as-96928 system corrupted by crushing effect. 14210_ as-96928 system terminally corrupted. 14215_ as-68913 knocked back. 14218_ as-99288 knocked back. 14223_ Penetrated by Slug. Map ----- +----------------------------------------------------+ | ????????????????????????????????? | | ????????????????????????????????? | | ????????????????????????????????? | | ????????????????????????????????? | | ????????????????????????????????? | | ????????????????????????????????? | | ????????????????????????????????? | | ????????????? ? ??????????????? | | ????????????? ?????????????? | | ??????????? ????????????? | | ??????????? ???????????? | | ?????????? ???###?????? | | ?????????? M ??# #?????? | | ????????? ### ####??? | | ???????? # #??? | | ???????? ]! ##????? | | ???????? ###??? | | ???????? #??? | | ???????? ] ###??? | | ???????? ] ##???? | | ???????? #???? | | ???????? G #???? | | ???????? a #???# | | ??????###a #???# | | ??????#GGG | #???# | | ??????# @ #???# | | ??????# #??## | | ??????# ! #### | | ??????# ## | | ??????### [ = [ ## | | ????????" * [ [ ## | | ????????" [ ## | | ????????" | | ????????""" ! | | ????????" | | ????????"" M ## | | ????????" # | | ????????"" ### | | ????????" "%# #?## | | ????????" ###" ## ## ##??## | | ????????""" ###### #"[]###????# | | ?????????" #"##"[##??????? | | ?????????###########?####???????? | | | | | | | | | | | | | | | +----------------------------------------------------+ Best States ------------- Heat Dissipation 34 Coolant Potential 50 Energy Generation 27 Energy Capacity 310 Matter Stores 300 Matter Capacity 300 Sight Range 16 Robot Scan Range 20 Terrain Scan Density 10 Additional Mass Support 6 EM Shielding 2 Armor Coverage 900 Resistance: KI 30 Resistance: TH 10 Power Shielding 33 Propulsion Shielding 66 Weapon Shielding 100 Evasion (%) 40 Targeting Accuracy 16 Recoil Reduction 2 Matter Filtering 30 Defensive Hacking 10 Item Schematics ----------------- Huge Storage Unit | -10/Materials | Hacked Exp. Sensor Array | -8/Materials | Scanalyzed Humpback | -8/Materials | Scanalyzed Arm. Wheel | -8/Materials | Scanalyzed System Restoration Module | -7/Factory | Scanalyzed Mak. System Shield | -7/Zion | Archive Hvy. Plasma Cannon | -7/Zion | Archive Imp. Shock Absorption System | -7/Zion | Archive Fusion Compressor | -7/Zion | Archive Arm. Leg | -7/Zion | Archive Imp. Medium Armor Plating | -7/Zion | Archive Arc Projector | -7/Zion | Archive Force Field | -7/Zion | Archive Imp. Arc Projector | -7/Zion | Archive Transmission Jammer | -7/Zion | Archive Hvy. Machine Gun | -7/Zion | Archive Imp. KE Penetrator | -7/Zion | Archive Energy Filter | -7/Zion | Archive Enh. Optical Array | -7/Zion | Archive Hvy. Rocket Launcher | -7/Zion | Archive Robot Schematics ------------------ T-07 Excavator | -7/Zion | Archive W-25 Informer | -7/Zion | Archive R-06 Scavenger | -7/Zion | Archive Fabricated ------------ Nothing Alien Tech Used ----------------- Core Expander Achievements -------------- None Challenges ------------ None Game ------ Seed AnalysisRagnarokWell Manual? 0 Play Time 01:03:51 Cumulative 169.3 hours Start 2022.02.25 @ 05:29:41 End 2022.02.25 @ 06:31:35 Sessions 1 Manual Loads 0 Difficulty Rogue Special Mode None Game No. 281 Rogue 264 Adventurer 4 Explorer 13 Win Type - Total 8 Types 6/0/0/2/0/0/0/0/0 Lore% 65 Gallery% 81 Achievement% 68 Wizard Run 0 Options --------- ASCII 0 Keyboard 1 Movement Numpad Keybinds 0 Fullscreen 1 Font 18/SmallcapsGlow Map View 76x50 Tactical HUD 1 Map Filters NONE Filters NONE Steam 1 RUN: 49e06fff-b59c-4c04-a655-e8f51549d9de